bitfinex/quotes_SOLUSD_20251031
["timestamp","ask_amount","ask_price","bid_price","bid_amount"]
[1761893219808,3.13556394,185.72,185.68,5.38560965]
[1761893220000,0.71,185.71,185.68,5.38560965]
[1761893220410,0.71,185.71,185.68,6.08560965]
[1761893220706,0.71,185.71,185.68,5.38560965]
[1761893220911,0.71,185.71,185.67,5.38585004]
[1761893221209,0.71,185.71,185.67,6.08585004]
[1761893221681,3.84556394,185.71,185.67,0.7]
[1761893221885,3.13556394,185.68,185.64,5.386734]
[1761893222419,3.84556394,185.67,185.63,9.78882769]
[1761893222719,3.13556394,185.64,185.59,8.52373895]
[1761893222894,20.592,185.68,185.6,10.07315083]
[1761893222895,21.302,185.66,185.6,10.07315083]
[1761893223095,20.592,185.66,185.6,10.77315083]
[1761893223425,3.13556394,185.64,185.6,61.7]
[1761893223624,3.13556394,185.62,185.58,61.7]
[1761893224011,3.13556394,185.64,185.59,0.7]
[1761893224205,24.43756394,185.65,185.59,3.83556394]
[1761893224516,20.592,185.65,185.62,3.13556394]
[1761893225086,9.78882769,185.69,185.63,3.83556394]
[1761893225087,20.592,185.69,185.63,3.83556394]
[1761893225320,24.43756394,185.69,185.64,3.13556394]
[1761893225616,20.592,185.67,185.64,3.13556394]
[1761893225799,20.592,185.67,185.64,3.83556394]
[1761893226003,20.592,185.67,185.64,6.08676955]
[1761893226210,0.71,185.68,185.64,6.08676955]
[1761893226517,0.71,185.68,185.64,9.22233349]
[1761893226714,0.71,185.68,185.63,12.92439163]
[1761893226906,3.84556394,185.68,185.63,12.92439163]
[1761893227212,3.84556394,185.68,185.6,75.45347456]
[1761893227213,3.13556394,185.64,185.6,61.7]
[1761893227519,3.13556394,185.61,185.58,61.7]
[1761893227824,20.592,185.65,185.58,67.08842038]
[1761893227825,3.13556394,185.62,185.58,67.08842038]
[1761893228000,3.13556394,185.62,185.58,61.7]
[1761893228194,3.84556394,185.62,185.58,61.7]
[1761893228606,3.84556394,185.61,185.58,61.7]
[1761893229106,3.13556394,185.61,185.58,67.78850596]
[1761893230017,3.13556394,185.62,185.58,67.08850596]
[1761893230198,3.13556394,185.61,185.58,61.7]
[1761893230399,3.84556394,185.61,185.58,61.7]
[1761893230617,3.84556394,185.6,185.58,61.7]
[1761893230807,3.13556394,185.59,185.58,61.7]
[1761893231012,3.84556394,185.59,185.55,61.9]
[1761893231317,3.13556394,185.57,185.55,61.9]
[1761893231729,3.84556394,185.58,185.55,61.9]
[1761893232107,0.71,185.57,185.55,61.9]
[1761893232411,3.84556394,185.57,185.55,61.9]
[1761893232611,3.13556394,185.57,185.55,61.9]
[1761893233016,3.84556394,185.57,185.55,61.9]
[1761893233723,20.592,185.6,185.56,0.7]
[1761893233901,20.592,185.6,185.56,3.83556394]
[1761893234098,20.592,185.6,185.56,0.7]
[1761893234303,24.43756394,185.61,185.56,3.83556394]
[1761893234631,21.302,185.61,185.56,3.83556394]
[1761893234920,21.302,185.61,185.56,65.53556394]
[1761893235323,21.302,185.61,185.56,64.41028425]
[1761893235526,21.302,185.61,185.57,6.08880206]
[1761893236411,23.31228425,185.61,185.57,0.7]
[1761893236611,2.72028425,185.6,185.56,61.7]
[1761893236929,2.01028425,185.59,185.56,61.7]
[1761893237309,2.01028425,185.58,185.56,61.7]
[1761893237514,2.68028425,185.59,185.56,61.7]
[1761893238225,2.01028425,185.59,185.56,61.7]
[1761893238535,22.60228425,185.57,185.56,61.7]
[1761893238733,23.27228425,185.57,185.56,61.7]
[1761893239329,23.27228425,185.57,185.55,0.2]
[1761893239536,2.01028425,185.57,185.55,0.2]
[1761893239705,26.65051851,185.58,185.55,0.88]
[1761893239706,20.592,185.58,185.55,0.88]
[1761893239910,20.592,185.58,185.56,0.68]
[1761893240215,20.592,185.58,185.55,2.21028425]
[1761893240216,20.592,185.58,185.55,0.88]
[1761893240419,2.01028425,185.59,185.55,6.26932388]
[1761893240618,22.60228425,185.6,185.55,6.26932388]
[1761893240832,23.27228425,185.6,185.55,6.26932388]
[1761893241733,2.68028425,185.59,185.55,0.2]
[1761893242038,2.68028425,185.59,185.55,0.88]
[1761893243110,2.68028425,185.59,185.55,6.26936434]
[1761893243633,2.68028425,185.59,185.55,67.96936434]
[1761893244343,2.01028425,185.6,185.56,0.68]
[1761893244549,2.68028425,185.6,185.55,69.97964859]
[1761893245133,2.01028425,185.59,185.55,67.96936434]
[1761893245716,0.67,185.62,185.56,6.06888775]
[1761893245922,2.01028425,185.61,185.56,8.079172]
[1761893246231,2.01028425,185.61,185.56,6.06888775]
[1761893246429,2.68028425,185.61,185.56,6.06888775]
[1761893246619,2.68028425,185.61,185.57,0.68]
[1761893247421,2.01028425,185.61,185.56,5.38888775]
[1761893247623,2.01028425,185.61,185.58,0.68]
[1761893248145,2.68028425,185.61,185.56,6.06888775]
[1761893248649,2.68028425,185.61,185.57,0.68]
[1761893249327,2.68028425,185.61,185.57,6.06873081]
[1761893249635,2.68028425,185.61,185.57,67.76873081]
[1761893249837,2.68028425,185.61,185.57,61.7]
[1761893249838,2.71028425,185.6,185.57,61.7]
[1761893250046,2.01028425,185.6,185.57,61.7]
[1761893250426,2.71028425,185.61,185.57,62.42]
[1761893250839,0.7,185.61,185.57,62.42]
[1761893251041,2.01028425,185.64,185.59,2.01028425]
[1761893251223,2.01028425,185.64,185.6,5.38793103]
[1761893251429,22.60228425,185.64,185.6,6.10793103]
[1761893252142,23.30228425,185.64,185.6,0.72]
[1761893253748,2.01028425,185.65,185.6,6.10776188]
[1761893254046,2.71028425,185.65,185.6,6.10776188]
[1761893254226,2.71028425,185.65,185.61,0.72]
[1761893254542,2.71028425,185.65,185.61,62.42]
[1761893254718,2.01028425,185.64,185.61,62.42]
[1761893255125,6.08650456,185.65,185.61,62.42]
[1761893255336,2.01028425,185.64,185.61,62.42]
[1761893255742,25.97828067,185.66,185.62,0.72]
[1761893255931,28.68856492,185.66,185.62,0.72]
[1761893256530,20.592,185.66,185.62,0.72]
[1761893257042,22.60228425,185.66,185.62,0.72]
[1761893257250,20.592,185.66,185.65,2.01028425]
[1761893257448,2.01028425,185.7,185.65,61.7]
[1761893257743,2.01028425,185.66,185.65,61.7]
[1761893257939,2.01028425,185.66,185.6,64.43028425]
[1761893258119,2.01028425,185.65,185.6,69.81818106]
[1761893258526,2.71028425,185.65,185.61,0.72]
[1761893259048,2.71028425,185.64,185.6,67.08789681]
[1761893259548,2.71028425,185.64,185.6,67.80789681]
[1761893259759,2.01028425,185.65,185.61,0.72]
[1761893259926,2.71028425,185.65,185.61,0.72]
[1761893260546,2.01028425,185.65,185.6,67.08789681]
[1761893260854,0.7,185.64,185.6,67.80789681]
[1761893261052,2.71028425,185.64,185.6,61.7]
[1761893261348,22.60228425,185.66,185.61,0.72]
[1761893261648,20.592,185.66,185.61,2.73028425]
[1761893262145,21.292,185.66,185.61,2.73028425]
[1761893262451,0.7,185.65,185.61,64.43028425]
[1761893262626,2.71028425,185.65,185.61,62.42]
[1761893263665,2.71028425,185.65,185.61,67.80763461]
[1761893263837,2.01028425,185.65,185.61,67.08763461]
[1761893264147,2.01028425,185.65,185.62,0.72]
[1761893264354,2.01028425,185.65,185.61,67.08763461]
[1761893264355,2.71028425,185.65,185.61,67.80763461]
[1761893264950,0.7,185.65,185.61,67.80763461]
[1761893265151,20.592,185.66,185.62,0.72]
[1761893266858,20.592,185.66,185.62,2.73028425]
[1761893267044,20.592,185.66,185.62,69.81756433]
[1761893267354,20.592,185.66,185.63,0.72]
[1761893268645,6.08600402,185.67,185.63,0.72]
[1761893268846,21.292,185.67,185.63,6.10700726]
[1761893269040,20.592,185.67,185.63,8.11729151]
[1761893269244,16.8930208,185.7,185.66,2.01028425]
[1761893269245,20.592,185.7,185.66,2.01028425]
[1761893269447,7.39507552,185.71,185.66,61.7]
[1761893269648,27.98707552,185.71,185.67,0.72]
[1761893269839,0.7,185.7,185.66,64.43028425]
[1761893270169,0.7,185.7,185.66,62.42]
[1761893270663,2.71028425,185.7,185.66,62.42]
[1761893270845,27.98707552,185.71,185.66,61.7]
[1761893271177,28.68707552,185.71,185.67,0.72]
[1761893271859,2.01028425,185.7,185.67,0.72]
[1761893272960,2.01028425,185.7,185.67,62.42]
[1761893273137,22.60228425,185.71,185.67,67.80580869]
[1761893273337,22.60228425,185.71,185.68,0.72]
[1761893275473,2.71028425,185.7,185.67,61.7]
[1761893275849,2.01028425,185.69,185.67,61.7]
[1761893277058,2.01028425,185.7,185.67,62.42]
[1761893277662,2.01028425,185.7,185.68,0.72]
[1761893278768,2.01028425,185.7,185.68,62.42]
[1761893281179,2.70028425,185.69,185.68,61.7]
[1761893281673,2.01028425,185.69,185.68,61.7]
[1761893282264,22.60228425,185.71,185.68,62.38]
[1761893282846,22.60228425,185.71,185.69,0.68]
[1761893285468,22.60228425,185.71,185.68,61.7]
[1761893285642,22.60228425,185.71,185.68,62.38]
[1761893287168,22.60228425,185.71,185.68,61.7]
[1761893287169,2.01028425,185.69,185.68,61.7]
[1761893287567,2.70028425,185.69,185.68,61.7]
[1761893288358,8.08560386,185.69,185.68,61.7]
[1761893288580,20.592,185.66,185.62,61.7]
[1761893288793,2.01028425,185.63,185.62,61.7]
[1761893288951,2.01028425,185.63,185.62,62.38]
[1761893289863,2.01028425,185.65,185.62,62.38]
[1761893290072,2.01028425,185.65,185.63,0.68]
[1761893290572,22.60228425,185.66,185.63,0.68]
[1761893290750,2.01028425,185.66,185.63,0.68]
[1761893291150,5.38575422,185.68,185.63,0.68]
[1761893291351,2.01028425,185.66,185.63,62.38]
[1761893291769,2.01028425,185.66,185.64,0.68]
[1761893292253,2.01028425,185.67,185.64,0.68]
[1761893292452,22.60228425,185.67,185.64,0.68]
[1761893295381,27.98822223,185.67,185.64,0.68]
[1761893295562,25.97793798,185.67,185.64,0.68]
[1761893295764,20.592,185.67,185.64,0.68]
[1761893296156,20.592,185.72,185.64,67.76651853]
[1761893296362,2.01028425,185.7,185.65,2.01028425]
[1761893296571,5.38531961,185.69,185.65,2.69028425]
[1761893296768,16.1912729,185.74,185.66,0.68]
[1761893296969,2.01028425,185.73,185.68,2.01028425]
[1761893297283,2.01028425,185.73,185.68,61.7]
[1761893297284,23.72939593,185.72,185.68,61.7]
[1761893297459,3.13739593,185.72,185.69,0.68]
[1761893297860,23.72939593,185.72,185.69,0.68]
[1761893298072,25.97574326,185.75,185.69,0.68]
[1761893298278,3.13739593,185.73,185.69,0.68]
[1761893298581,3.13739593,185.75,185.7,3.13739593]
[1761893299080,20.592,185.75,185.71,3.81739593]
[1761893299581,20.592,185.75,185.72,0.68]
[1761893299774,3.13739593,185.75,185.72,0.68]
[1761893300177,23.72939593,185.75,185.72,0.68]
[1761893300780,20.592,185.75,185.72,0.68]
[1761893301788,20.592,185.75,185.7,3.13739593]
[1761893301966,23.72939593,185.75,185.7,3.13739593]
[1761893302170,23.72939593,185.75,185.7,3.81739593]
[1761893302171,29.80299378,185.75,185.7,3.81739593]
[1761893302369,29.80299378,185.75,185.7,3.13739593]
[1761893302583,29.80299378,185.75,185.71,0.68]
[1761893303368,29.11299378,185.75,185.71,0.68]
[1761893304191,29.77299378,185.75,185.71,0.68]
[1761893304689,29.11299378,185.75,185.71,0.68]
[1761893304886,29.77299378,185.75,185.71,0.68]
[1761893305085,29.11299378,185.75,185.71,0.68]
[1761893305296,29.11299378,185.75,185.71,62.38]
[1761893305592,3.13739593,185.74,185.71,61.7]
[1761893305971,3.13739593,185.74,185.71,62.38]
[1761893306166,3.13739593,185.73,185.68,61.7]
[1761893306370,3.13739593,185.71,185.68,62.38]
[1761893306597,23.72939593,185.72,185.68,61.7]
[1761893306893,20.592,185.72,185.69,0.68]
[1761893307595,25.97650899,185.72,185.68,61.7]
[1761893307897,25.97650899,185.72,185.69,0.68]
[1761893309279,20.592,185.72,185.69,0.68]
[1761893309481,5.38421598,185.73,185.69,3.81739593]
[1761893309875,5.38421598,185.73,185.69,3.13739593]
[1761893310194,5.38421598,185.73,185.7,0.66]
[1761893310408,20.592,185.74,185.7,3.79739593]
[1761893310575,20.592,185.74,185.71,3.13739593]
[1761893310775,20.592,185.74,185.72,0.66]
[1761893310974,20.592,185.74,185.72,62.36]
[1761893311221,23.72939593,185.74,185.72,62.36]
[1761893311408,20.592,185.74,185.73,0.66]
[1761893311705,3.13739593,185.75,185.73,0.66]
[1761893311880,8.52073324,185.76,185.73,0.66]
[1761893312301,5.38333731,185.76,185.73,0.66]
[1761893312495,8.52073324,185.76,185.73,0.66]
[1761893312908,5.38333731,185.76,185.73,0.66]
[1761893313109,3.13739593,185.75,185.73,0.66]
[1761893314097,3.13739593,185.75,185.73,62.36]
[1761893315303,5.38333731,185.76,185.73,62.36]
[1761893315606,3.13739593,185.75,185.73,62.36]
[1761893316011,3.13739593,185.75,185.74,0.66]
[1761893317096,3.13739593,185.76,185.74,0.66]
[1761893317286,23.72939593,185.77,185.74,0.66]
[1761893317892,20.592,185.77,185.74,0.66]
[1761893319013,0.1,185.78,185.74,70.88124679]
[1761893319498,0.1,185.78,185.75,0.66]
[1761893319701,0.1,185.78,185.75,3.79739593]
[1761893319898,0.1,185.78,185.76,0.66]
[1761893320783,0.1,185.78,185.77,5.38300048]
[1761893321317,0.1,185.78,185.77,6.04300048]
[1761893322911,0.1,185.78,185.77,9.18039641]
[1761893324108,0.1,185.78,185.77,6.04300048]
[1761893324410,0.1,185.78,185.77,0.66]
[1761893325899,0.1,185.78,185.77,80.95354724]
[1761893327413,0.1,185.78,185.74,0.66]
[1761893327709,0.1,185.78,185.75,0.66]
[1761893327710,3.23739593,185.78,185.75,0.66]
[1761893328211,3.85739593,185.77,185.73,0.66]
[1761893328395,3.13739593,185.76,185.73,0.66]
[1761893328787,3.13739593,185.75,185.72,61.7]
[1761893328990,3.13739593,185.73,185.68,6.04558313]
[1761893329190,3.13739593,185.71,185.68,6.04558313]
[1761893329424,3.13739593,185.71,185.68,67.74558313]
[1761893329613,3.13739593,185.71,185.69,0.66]
[1761893329918,3.13739593,185.72,185.69,0.66]
[1761893330098,3.13739593,185.71,185.69,0.66]
[1761893331108,3.85739593,185.7,185.66,61.7]
[1761893331415,3.13739593,185.67,185.6,0.66]
[1761893331725,3.13739593,185.63,185.6,0.66]
[1761893332424,3.13739593,185.63,185.6,6.04792761]
[1761893332594,21.312,185.67,185.6,6.04792761]
[1761893332595,3.13739593,185.64,185.6,6.04792761]
[1761893332794,20.592,185.67,185.61,0.66]
[1761893332795,3.13739593,185.65,185.61,0.66]
[1761893333091,23.72939593,185.67,185.61,3.79739593]
[1761893333291,23.72939593,185.67,185.62,13.21054676]
[1761893333507,23.72939593,185.67,185.62,16.1204486]
[1761893333701,3.13739593,185.64,185.62,0.66]
[1761893336123,3.13739593,185.64,185.6,5.67217948]
[1761893336303,3.13739593,185.64,185.6,6.33217948]
[1761893336505,3.13739593,185.64,185.61,0.66]
[1761893336703,3.13739593,185.64,185.61,62.36]
[1761893336903,3.13739593,185.62,185.56,6.04906763]
[1761893337113,3.13739593,185.59,185.56,0.66]
[1761893337427,3.13739593,185.59,185.57,0.66]
[1761893338927,3.13739593,185.6,185.57,0.66]
[1761893339126,20.592,185.62,185.57,6.04879729]
[1761893339310,20.592,185.62,185.55,62.58]
[1761893339311,3.13739593,185.6,185.55,62.58]
[1761893339510,3.13739593,185.58,185.55,62.58]
[1761893340016,3.13739593,185.58,185.55,0.2]
[1761893340424,3.13739593,185.57,185.55,0.2]
[1761893340603,3.13739593,185.56,185.55,0.2]
[1761893341828,9.2064884,185.56,185.55,0.2]
[1761893342027,3.81739593,185.56,185.55,0.2]
[1761893342225,20.592,185.57,185.55,0.2]
[1761893342410,23.72939593,185.56,185.55,0.2]
[1761893342620,24.40939593,185.56,185.55,0.2]
[1761893343935,3.13739593,185.56,185.55,0.2]
[1761893344331,3.81739593,185.56,185.55,0.2]
[1761893345434,3.13739593,185.57,185.55,0.2]
[1761893345729,0.68,185.58,185.55,0.2]
[1761893345934,21.272,185.58,185.55,0.2]
[1761893346108,24.40939593,185.58,185.55,0.2]
[1761893346314,21.272,185.58,185.55,0.2]
[1761893346833,18.85497707,185.64,185.55,0.2]
[1761893346834,3.81739593,185.63,185.57,3.13739593]
[1761893347131,3.81739593,185.63,185.58,3.13739593]
[1761893347326,3.81739593,185.63,185.58,8.52582275]
[1761893347530,3.13739593,185.63,185.58,9.20582275]
[1761893347830,0.68,185.62,185.58,9.20582275]
[1761893348933,3.13739593,185.63,185.58,9.20582275]
[1761893349140,0.68,185.63,185.59,8.52560855]
[1761893349337,0.68,185.63,185.59,70.22560855]
[1761893349935,0.68,185.63,185.59,70.90560855]
[1761893351143,0.68,185.63,185.59,70.22560855]
[1761893351324,0.68,185.63,185.59,64.83739593]
[1761893351643,0.68,185.63,185.59,61.7]
[1761893351943,3.13739593,185.62,185.59,61.7]
[1761893352119,0.68,185.63,185.59,64.83739593]
[1761893352319,3.81739593,185.63,185.59,61.7]
[1761893352839,0.68,185.62,185.59,61.7]
[1761893353137,3.13739593,185.63,185.59,61.7]
[1761893353433,0.68,185.62,185.59,61.7]
[1761893358737,0.68,185.62,185.59,67.08816295]
[1761893359119,2.0099679,185.63,185.59,67.76816295]
[1761893359320,2.6899679,185.63,185.59,67.76816295]
[1761893360033,2.6899679,185.63,185.59,62.38]
[1761893360225,0.68,185.62,185.59,61.7]
[1761893360624,0.68,185.62,185.59,67.08818856]
[1761893361526,0.68,185.62,185.59,61.7]
[1761893364146,0.68,185.62,185.59,67.0881768]
[1761893365149,0.68,185.62,185.59,61.7]
[1761893365533,0.68,185.62,185.59,62.37]
[1761893366123,0.68,185.62,185.59,61.7]
[1761893366839,0.68,185.62,185.59,62.37]
[1761893367444,2.0099679,185.63,185.59,62.37]
[1761893367630,2.7099679,185.63,185.59,67.75813864]
[1761893367837,25.97896927,185.64,185.6,0.67]
[1761893367838,22.6019679,185.64,185.6,0.67]
[1761893368230,23.3019679,185.64,185.6,0.67]
[1761893369542,0.7,185.68,185.62,2.0099679]
[1761893369743,2.0099679,185.67,185.62,2.0099679]
[1761893369947,2.0099679,185.67,185.62,2.6799679]
[1761893370134,2.7099679,185.67,185.63,0.67]
[1761893370741,0.7,185.66,185.61,2.6799679]
[1761893371057,7.39592249,185.67,185.61,64.3799679]
[1761893371262,7.39592249,185.67,185.62,0.67]
[1761893371851,8.09592249,185.67,185.62,0.67]
[1761893372348,8.09592249,185.67,185.62,6.05732217]
[1761893372549,2.7099679,185.66,185.62,0.67]
[1761893372749,2.7099679,185.66,185.61,67.08761301]
[1761893372949,2.0099679,185.66,185.61,67.75761301]
[1761893373153,0.7,185.65,185.61,67.75761301]
[1761893374461,2.0099679,185.66,185.62,0.67]
[1761893374636,2.7099679,185.66,185.62,0.67]
[1761893375738,2.7099679,185.66,185.62,62.37]
[1761893375945,2.0099679,185.66,185.62,62.37]
[1761893376139,2.0099679,185.66,185.63,0.67]
[1761893378560,2.7099679,185.66,185.62,62.37]
[1761893379160,2.0099679,185.66,185.63,0.67]
[1761893380663,2.7099679,185.66,185.63,0.67]
[1761893381255,0.7,185.66,185.63,0.67]
[1761893381461,2.7099679,185.66,185.63,62.37]
[1761893381655,0.7,185.66,185.63,62.37]
[1761893381869,2.7099679,185.66,185.63,62.37]
[1761893383672,0.7,185.66,185.63,62.37]
[1761893383857,2.7099679,185.66,185.63,62.37]
[1761893384359,20.592,185.67,185.64,0.67]
[1761893384566,20.592,185.67,185.64,2.6799679]
[1761893384947,2.0099679,185.69,185.65,0.67]
[1761893385143,2.0099679,185.69,185.65,62.37]
[1761893385664,27.98705007,185.7,185.66,0.67]
[1761893386247,27.98705007,185.7,185.66,62.37]
[1761893386459,28.68705007,185.7,185.66,62.37]
[1761893387152,2.0099679,185.69,185.66,62.37]
[1761893387352,2.7099679,185.69,185.66,61.7]
[1761893387668,2.0099679,185.69,185.66,61.7]
[1761893388056,2.7099679,185.69,185.66,61.7]
[1761893388460,7.39535448,185.69,185.66,62.37]
[1761893388657,8.09535448,185.69,185.66,62.37]
[1761893389671,7.39535448,185.69,185.66,62.37]
[1761893390050,27.9870334,185.7,185.66,62.37]
[1761893390246,5.38469183,185.72,185.67,2.6799679]
[1761893390451,5.38469183,185.72,185.67,64.3799679]
[1761893390452,20.592,185.72,185.67,64.3799679]
[1761893390666,20.592,185.72,185.68,0.67]
[1761893391663,20.592,185.72,185.68,62.37]
[1761893392177,20.592,185.72,185.69,0.67]
[1761893392557,27.98620777,185.73,185.69,0.67]
[1761893393166,2.0099679,185.72,185.69,0.67]
[1761893393371,2.0099679,185.71,185.68,61.7]
[1761893393679,8.09476775,185.71,185.68,61.7]
[1761893393976,2.0099679,185.69,185.68,61.7]
[1761893394462,2.7099679,185.69,185.68,61.7]
[1761893394974,0.7,185.69,185.68,61.7]
[1761893395270,7.3951545,185.7,185.68,61.7]
[1761893395660,5.3851866,185.7,185.68,61.7]
[1761893395985,7.3951545,185.7,185.68,61.7]
[1761893396560,2.0099679,185.69,185.68,61.7]
[1761893397169,7.39528751,185.69,185.68,61.7]
[1761893398761,8.08528751,185.69,185.68,61.7]
[1761893400571,21.54858655,185.69,185.63,61.7]
[1761893400769,2.0099679,185.66,185.63,61.7]
[1761893400972,2.0099679,185.67,185.63,62.4]
[1761893401171,2.6999679,185.68,185.64,0.7]
[1761893401372,7.39528751,185.69,185.64,0.7]
[1761893401576,5.38531961,185.69,185.65,2.0099679]
[1761893401971,5.38531961,185.69,185.66,0.7]
[1761893402677,7.39528751,185.69,185.66,0.7]
[1761893402873,8.08528751,185.69,185.63,63.7099679]
[1761893403080,7.39528751,185.69,185.65,0.7]
[1761893404092,2.6999679,185.68,185.63,62.4]
[1761893404393,2.6999679,185.68,185.64,0.7]
[1761893404581,2.0099679,185.68,185.64,0.7]
[1761893404981,2.0099679,185.68,185.64,62.4]
[1761893405590,7.39528751,185.69,185.65,0.7]
[1761893405802,2.0099679,185.69,185.65,0.7]
[1761893405972,25.97704561,185.7,185.65,2.7099679]
[1761893405973,27.98701351,185.7,185.65,2.7099679]
[1761893406170,27.98701351,185.7,185.65,64.4099679]
[1761893406387,27.98701351,185.7,185.66,2.7099679]
[1761893406388,5.38504561,185.7,185.66,2.7099679]
[1761893406599,5.38504561,185.7,185.67,0.7]
[1761893406900,5.38504561,185.7,185.67,62.4]
[1761893407086,5.38504561,185.7,185.68,0.7]
[1761893407397,2.6999679,185.69,185.68,61.7]
[1761893408278,8.08528751,185.69,185.68,61.7]
[1761893408474,7.39528751,185.69,185.68,61.7]
[1761893408676,20.592,185.69,185.68,62.4]
[1761893408879,20.592,185.72,185.68,64.4099679]
[1761893409081,22.6019679,185.72,185.69,0.7]
[1761893409598,2.0099679,185.71,185.69,0.7]
[1761893409977,2.0099679,185.71,185.68,61.7]
[1761893410191,7.39478686,185.71,185.68,62.4]
[1761893410511,7.39478686,185.71,185.68,61.7]
[1761893410814,7.39478686,185.71,185.69,0.7]
[1761893411007,7.39478686,185.71,185.68,61.7]
[1761893411008,2.6999679,185.7,185.68,61.7]
[1761893411315,2.0099679,185.69,185.68,61.7]
[1761893412387,7.39528751,185.69,185.68,61.7]
[1761893413316,2.0099679,185.7,185.68,61.7]
[1761893413492,2.0099679,185.7,185.68,62.4]
[1761893414006,2.0099679,185.7,185.68,61.7]
[1761893414719,2.0099679,185.7,185.68,62.4]
[1761893414913,2.0099679,185.69,185.68,62.4]
[1761893415092,2.0099679,185.69,185.68,61.7]
[1761893415506,2.0099679,185.69,185.68,62.4]
[1761893417713,5.3852395,185.7,185.68,62.4]
[1761893417714,20.592,185.7,185.68,62.4]
[1761893417914,22.6019679,185.7,185.68,62.41]
[1761893418124,2.0099679,185.69,185.68,62.41]
[1761893419523,3.13848837,185.69,185.68,62.41]
[1761893420520,8.52380798,185.69,185.68,62.41]
[1761893422526,8.52380798,185.69,185.68,61.7]
[1761893422828,8.52380798,185.69,185.68,62.41]
[1761893425500,29.11563058,185.7,185.68,62.41]
[1761893425716,29.11563058,185.7,185.62,16.18952537]
[1761893425717,20.592,185.67,185.64,0.71]
[1761893425903,3.13848837,185.65,185.64,0.71]
[1761893427613,8.5249683,185.65,185.64,0.71]
[1761893428613,8.5249683,185.65,185.63,0.71]
[1761893429327,3.13848837,185.64,185.63,0.71]
[1761893430020,8.52525846,185.64,185.63,0.71]
[1761893430922,8.52525846,185.64,185.63,61.7]
[1761893431423,29.82725846,185.64,185.63,61.7]
[1761893432419,29.11725846,185.64,185.63,61.7]
[1761893432625,29.82725846,185.64,185.63,61.7]
[1761893432819,46.0237762,185.64,185.63,61.7]
[1761893434233,59.49070143,185.64,185.58,62.41]
[1761893434435,3.13848837,185.61,185.58,62.41]
[1761893434936,3.13848837,185.61,185.59,0.71]
[1761893435819,3.13848837,185.61,185.58,61.7]
[1761893436021,3.13848837,185.6,185.58,62.41]
[1761893436364,8.52642508,185.6,185.58,62.41]
[1761893436528,3.13848837,185.59,185.56,0.71]
[1761893436835,3.13848837,185.57,185.56,0.71]
[1761893437425,3.13848837,185.57,185.56,61.7]
[1761893438331,8.52729043,185.57,185.56,61.7]
[1761893440326,8.52729043,185.57,185.55,61.9]
[1761893440614,3.13848837,185.56,185.55,61.9]
[1761893442441,8.52758084,185.56,185.55,61.9]
[1761893449448,8.52758084,185.56,185.55,62.61]
[1761893450732,8.52758084,185.56,185.55,61.9]
[1761893450941,8.52758084,185.56,185.55,62.61]
[1761893451331,23.73048837,185.56,185.55,62.61]
[1761893451756,29.11958084,185.56,185.55,62.61]
[1761893458865,29.11958084,185.56,185.55,61.9]
[1761893459036,29.11958084,185.56,185.55,62.61]
[1761893460133,25.98109247,185.56,185.55,62.61]
[1761893460433,29.11958084,185.56,185.55,62.61]
[1761893461041,29.11958084,185.56,185.55,61.9]
[1761893461235,29.11958084,185.56,185.55,62.61]
[1761893465042,29.11958084,185.56,185.55,61.9]
[1761893465860,8.52758084,185.56,185.55,61.9]
[1761893466559,8.52758084,185.56,185.55,0.2]
[1761893467052,9.21758084,185.56,185.55,0.2]